Workbook

Sheet РАСЧЕТ СТО
G1: СПРАВКА | W1: Справка
B2: НАЧИСЛЕНИЙ ЗА ЭЛЕКТРОЭНЕРГИЮ, ОТПУЩЕННУЮ СТОРОННИМ ОРГАНИЗАЦИЯМ В ИЮЛЕ 2021 г. (первичный расчет) | R2: НАЧИСЛЕНИЙ ЗА ЭЛЕКТРОЭНЕРГИЮ, ОТПУЩЕННУЮ СТОРОННИМ ОРГАНИЗАЦИЯМ В АПРЕЛЕ 2012 Г (для бухгалтерии)
A3: № | B3: ИМЯ СТО | C3: № ДОГ | D3: ОБЪЕКТЫ | E3: ПОКАЗАНИЯ СЧЕТЧИКА | H3: КТ | I3: РАСХОД | J3: РАСХОД | K3: ТАРИФ | M3: СУММА РУБ | Q3: № | R3: ИМЯ СТО | S3: № ДОГ | T3: ОБЪЕКТЫ | U3: ПОКАЗАНИЯ СЧЕТЧИКА | X3: КТ | Y3: РАСХОД | Z3: РАСХОД
C4: дата | D4: № СЧЕТЧИКА | E4: ТЕК | F4: ПРЕД | G4: РАЗН | I4: КВТ.Ч | J4: ИТОГО | K4: ЭЛ | L4: ТРАНЗ | M4: ЗА ЭЛ. | N4: Всего | O4: ЗА ТРАН | P4: ИТОГО | S4: дата | T4: № СЧЕТЧИКА | U4: ТЕК | V4: ПРЕД | W4: РАЗН | Y4: КВТ.Ч | Z4: ИТОГО
A5: 1 | B5: 2 | C5: 3 | D5: 4 | E5: 6 | F5: 7 | G5: 8 | H5: 9 | I5: 10 | J5: 13 | K5: 14 | L5: 15 | M5: 16 | N5: 17 | O5: 18 | P5: 19 | Q5: 1 | R5: 2 | S5: 3 | T5: 4 | U5: 6 | W5: 8 | X5: 9 | Y5: 10 | Z5: 13
A6: 1. | B6: Новороссийский | C6: № 2775 | D6: Котельная | Q6: 14 | R6: ВЧ 10415 | T6: Здание
B7: филиал | D7: 0819191268 | E7: =ROUND('[1]Акт по договору НЭСК_1'!$F$58,1) -> 4.7 | F7: 4.7 | G7: =E7-F7 -> 0 | H7: 40 | I7: =G7*H7 -> 0 | J7: =I7 -> 0 | K7: СН-2
B8: ФБУЗ | D8: Здание
B9: "Центр | D9: 081919070 | E9: =ROUND('[1]Акт по договору НЭСК_1'!$F$60,1) -> 4.8 | F9: 4.8 | G9: =E9-F9 -> 0 | H9: 40 | I9: =G9*H9 -> 0 | K9: СН-2
B10: гигиены и | D10: Здание
B11: эпидемиологии | D11: 0815191092 | E11: =ROUND('[1]Акт по договору НЭСК_1'!$F$59,0) -> 8097 | F11: 8097 | G11: =E11-F11 -> 0 | H11: 40 | I11: =G11*H11 -> 0 | J11: =I11 -> 0 | K11: СН-2
B12: в Краснод.крае" | J12: =SUM(J6:J11) -> 0 | L12: 0.30689 | M12: =J12*K12 -> 0 | O12: =J12*L12 -> 0 | P12: =SUM(N12,O12) -> 0
A13: 2. | B13: ОПК | D13: Здание | G13: =E13-F13 -> 0 | I13: =G13*H13 -> 0 | J13: =I13 -> 0
B14: "Новороссийск" | D14: 01818190028 | E14: =ROUND('[1]Акт по договору НЭСК_1'!$F$63,0) -> 9120 | F14: 9120 | G14: =E14-F14 -> 0 | H14: 40 | I14: =G14*H14 -> 0 | J14: =I14 -> 0 | K14: СН-2
B15: ЧАПУБО | D15: Склады | G15: =E15-F15 -> 0 | I15: =G15*H15 -> 0 | J15: =I15 -> 0
B16: ФСБ РФ | D16: 01818190021 | E16: =ROUND('[1]Акт по договору НЭСК_1'!$F$64,0) -> 1456 | F16: 1456 | G16: =E16-F16 -> 0 | H16: 40 | I16: =G16*H16 -> 0 | J16: =I16 -> 0 | K16: СН-2
C17: № 216 | J17: =SUM(J13:J16) -> 0 | L17: 0.30689 | M17: =J17*K17 -> 0 | O17: =J17*L17 -> 0 | P17: =SUM(N17,O17) -> 0
A18: 3. | B18: НТПП | D18: ТП-19 | G18: =E18-F18 -> 0 | I18: =G18*H18 -> 0 | J18: =I18 -> 0
B19: ул.Портовая | C19: № 1750 | D19: 818190069 | E19: =ROUND('[1]Акт по договору НЭСК_1'!$F$67,0) -> 2166 | F19: 2166 | G19: =E19-F19 -> 0 | H19: 20 | I19: =G19*H19 -> 0 | J19: =I19 -> 0 | K19: СН-2
B20: 22 "А" | J20: =SUM(J18:J19) -> 0 | L20: 0.30689 | O20: =J20*L20 -> 0 | P20: =SUM(N20,O20) -> 0
A21: 4. | B21: ИП Зинченко | C21: № 5592 | D21: маг."Рыболов"
B22: А.Г. | D22: 0818190127 | E22: =ROUND('[1]Акт по договору НЭСК_1'!$F$70,0) -> 260 | F22: 260 | G22: =E22-F22 -> 0 | H22: 20 | I22: =G22*H22 -> 0 | J22: =I22 -> 0 | K22: СН-2
B23: (Жар) | J23: =SUM(J21:J22) -> 0 | L23: 0.30689 | O23: =J23*L23 -> 0 | P23: =O23 -> 0
A24: 5. | B24: ООО "Ново- | D24: ШР реф.контейнеров
B25: российский | C25: №6091 | D25: 0818190045 | E25: =ROUND('[1]Акт по договору НЭСК_1'!$F$73,0) -> 731 | F25: 731 | G25: =E25-F25 -> 0 | H25: 60 | I25: =G25*H25 -> 0 | J25: =I25 -> 0 | K25: СН-2 | AB25: Дрюмя С.М.
B26: контейнерный | D26: Управление
B27: комплекс" | D27: 0818190062 | E27: =ROUND('[1]Акт по договору НЭСК_1'!$F$74,0) -> 7369 | F27: 7369 | G27: =E27-F27 -> 0 | H27: 40 | I27: =G27*H27 -> 0 | J27: =I27 -> 0 | K27: СН-2
D28: Мех.мастерские | Q28: =J21*L21 -> 0
D29: 0818190171 | E29: =ROUND('[1]Акт по договору НЭСК_1'!$F$75,0) -> 100 | F29: 100 | G29: =E29-F29 -> 0 | H29: 60 | I29: =G29*H29 -> 0 | J29: =I29 -> 0 | K29: СН-2
J30: =SUM(J24:J29) -> 0 | L30: 0.30689 | O30: =J30*L30 -> 0 | P30: =SUM(N30,O30) -> 0
A31: 6. | B31: АЧФ ФБУ | C31: № 2779 | D31: ТП-21
B32: "Морспасслужба | D32: 0818190162 | E32: =ROUND('[1]Акт по договору НЭСК_1'!$F$78,0) -> 14341 | F32: 14341 | G32: =E32-F32 -> 0 | H32: 80 | I32: =G32*H32 -> 0 | J32: =I32 -> 0 | K32: СН-2
B33: Росморреч-
B34: флота" | J34: =SUM(J31:J33) -> 0 | L34: 0.30689 | O34: =J34*L34 -> 0 | P34: =SUM(N34,O34) -> 0
A35: 7. | B35: ИП | C35: №4752 | D35: киоск
D36: 39174134 | F36: 91 | G36: =E36-F36 -> -91 | H36: 1 | I36: =G36*H36 -> -91 | J36: =I36 -> -91 | K36: НН
B37: Чобанян А.А. | J37: =SUM(J35:J36) -> -91 | L37: 0.30689 | M37: =J37*K37 -> 0 | O37: =J37*L37 -> -27.92699 | P37: =SUM(N37,O37) -> -27.92699
A38: 8. | B38: МУП | D38: КНС-2-1 ТП-22
B39: "Водоканал | D39: 081990863 | E39: =ROUND('[1]Акт по договору НЭСК_1'!$F$46,1) -> 8.3 | F39: 8.3 | G39: =E39-F39 -> 0 | H39: 1800 | I39: =G39*H39 -> 0 | J39: =I39 -> 0 | K39: СН-2
B40: г.Ново- | D40: КНС-2-2 ТП-21
B41: российска" | D41: 0819190713 | E41: =ROUND('[1]Акт по договору НЭСК_1'!$F$47,0) -> 166 | F41: 166 | G41: =E41-F41 -> 0 | H41: 1800 | I41: =G41*H41 -> 0 | J41: =I41 -> 0 | K41: СН-2
C42: № 4231 | J42: =SUM(J38:J41) -> 0 | L42: 0.30689 | M42: =J42*K42 -> 0 | O42: =J42*L42 -> 0 | P42: =SUM(N42,O42) -> 0
A43: 9. | B43: ВЧ 09920 | D43: Здание
D44: 0818190026 | E44: =ROUND('[1]Акт по договору НЭСК_1'!$F$81,0) -> 1365 | F44: 1365 | G44: =E44-F44 -> 0 | H44: 40 | I44: =G44*H44 -> 0 | J44: =I44 -> 0 | K44: СН-2
C45: № 227 | J45: =SUM(J43:J44) -> 0 | L45: 0.30689 | M45: =J45*K45 -> 0 | O45: =J45*L45 -> 0 | P45: =SUM(N45,O45) -> 0
A46: 10. | B46: ПАО "ТНС | D46: ТП-21 | G46: =E46-F46 -> 0 | I46: =(G46*H46) -> 0
B47: энерго | D47: 07917033 | G47: =E47-F47 -> 0 | H47: 40 | I47: =G47*H47 -> 0 | J47: =I47 -> 0 | K47: СН-2 | L47: 0.30689
B48: Кубань" | D48: ТП-6 ПР.13
B49: ОАО "РЖД" | D49: 0823190848 | E49: =ROUND('[1]Акт по договору №140005 ТНС'!$F$28,1) -> 51.3 | F49: 51.3 | G49: =E49-F49 -> 0 | H49: 2400 | I49: =G49*H49 -> 0 | J49: =I49 -> 0 | K49: СН-2 | L49: 0.30689
B50: Энергосбыт-СП | D50: ТП-6 ПР 22
B51: СКЖД-филиала | D51: 0819190878 | E51: =ROUND('[1]Акт по договору №140005 ТНС'!$F$29,2) -> 114.58 | F51: 114.58 | G51: =E51-F51 -> 0 | H51: 2400 | I51: =G51*H51 -> 0 | J51: =I51 -> 0 | K51: СН-2 | L51: 0.30689
B52: ОАО "РЖД" | J52: =J47+J49+J51 -> 0 | M52: =J52*K52 -> 0 | O52: =J52*L51 -> 0 | P52: =SUM(N52,O52) -> 0
A53: 11. | B53: ООО АКВА- | D53: магазин,офис | G53: =E53-F53 -> 0 | I53: =G53*H53 -> 0 | M53: =J53*K53 -> 0
B54: сервис" | D54: 0819191049 | E54: =ROUND('[1]Акт по договору НЭСК_1'!$F$84,0) -> 1110 | F54: 1110 | G54: =E54-F54 -> 0 | H54: 20 | I54: =G54*H54 -> 0 | J54: =G54*H54 -> 0 | K54: СН-2
C55: № 2818 | J55: =SUM(J53:J54) -> 0 | L55: 0.30689 | M55: =J55*K55 -> 0 | O55: =J55*L55 -> 0 | P55: =SUM(N55,O55) -> 0
A56: 12. | B56: ООО | C56: № 6167 | D56: Здание | G56: =E56-F56 -> 0 | I56: =G56*H56 -> 0
B57: "Химторг" | D57: 818190113 | E57: =ROUND('[1]Акт по договору НЭСК_1'!$F$87,0) -> 2598 | F57: 2598 | G57: =E57-F57 -> 0 | H57: 40 | I57: =G57*H57 -> 0 | J57: =I57 -> 0 | K57: СН-2
J58: =SUM(J56:J57) -> 0 | L58: 0.30689 | M58: =J58*K58 -> 0 | O58: =J58*L58 -> 0 | P58: =SUM(N58,O57:O58) -> 0
A59: 13. | B59: гр.Кысова | D59: Здание
B60: М.Г. | D60: ул. Портовая,17 | M60: =J60*K60 -> 0
D61: 0819191275 | E61: =ROUND('[1]Акт по договору НЭСК_1'!$F$90,0) -> 27 | F61: 27 | G61: =E61-F61 -> 0 | H61: 40 | I61: =G61*H61 -> 0 | J61: =I61 -> 0 | K61: СН-2
C62: № 5274 | J62: =J59+J61 -> 0 | L62: 0.30689 | M62: =J62*K62 -> 0 | O62: =J62*L62 -> 0 | P62: =SUM(N62,O62) -> 0
A63: 14. | B63: АО "ФЛОТ | D63: Аккумуляторная
B64: НМТП" | C64: №1874 | D64: 39070532 | E64: =ROUND('[1]Акт по договору НЭСК_1'!$F$95,0) -> 17433 | F64: 17433 | G64: =E64-F64 -> 0 | H64: 1 | I64: =G64*H64 -> 0 | J64: =I64 -> 0 | K64: НН
D65: Управление | G65: =E65-F65 -> 0 | I65: =G65*H65 -> 0 | J65: =I65 -> 0
D66: ул. Портовая, 14 | M66: =J66*K66 -> 0
D67: 0818190044 | E67: =ROUND('[1]Акт по договору НЭСК_1'!$F$93,0) -> 2289 | F67: 2289 | G67: =E67-F67 -> 0 | H67: 80 | I67: =G67*H67 -> 0 | J67: =I67 -> 0 | K67: СН-2
D68: Управление
D69: ул. Портовая, 14 | L69: 0 | M69: =J69*K69 -> 0
D70: 0818190019 | E70: =ROUND('[1]Акт по договору НЭСК_1'!$F$94,0) -> 3195 | F70: 3195 | G70: =E70-F70 -> 0 | H70: 80 | I70: =G70*H70 -> 0 | J70: =I70 -> 0 | K70: СН-2
D71: ТП-5 Прич.7 б ЭК5 | E71: =ROUND('[1]Акт по договору НЭСК_1'!$F$98,0) -> 277 | F71: 277 | G71: =E71-F71 -> 0 | H71: 20 | I71: =G71*H71 -> 0 | J71: =I71 -> 0 | K71: НН
D72: 41939403
D73: ТП-1 Прич.1 ЭК1А
D74: 41939307 | E74: =ROUND('[1]Акт по договору НЭСК_1'!$F$99,0) -> 1282 | F74: 1282 | G74: =E74-F74 -> 0 | H74: 40 | I74: =G74*H74 -> 0 | J74: =I74 -> 0 | K74: НН
D75: ТП-16 ЭК 25А
D76: 40785728 | E76: =ROUND('[1]Акт по договору НЭСК_1'!$F$100,0) -> 50742 | F76: 50742 | G76: =E76-F76 -> 0 | H76: 1 | I76: =G76*H76 -> 0 | J76: =I76 -> 0 | K76: НН
D77: ТП-25 МВ ЭК-2
D78: 41939453 | E78: =ROUND('[1]Акт по договору НЭСК_1'!$F$102,0) -> 2751 | F78: 2751 | G78: =E78-F78 -> 0 | H78: 20 | I78: =G78*H78 -> 0 | J78: =I78 -> 0 | K78: НН
D79: ТП-25 МВ ЭК-1 | G79: 0 | I79: 0 | J79: 0 | Q79: =J65*L65 -> 0
D80: 40785754 | E80: =ROUND('[1]Акт по договору НЭСК_1'!$F$101,0) -> 38176 | F80: 38176 | G80: 0 | H80: 1 | I80: 0 | J80: 0 | K80: НН
D81: НР Прич.1 РП | G81: 0 | I81: 0 | J81: 0 | Q81: =J91-J67-J70 -> 0
D82: 40785752 | E82: =ROUND('[1]Акт по договору НЭСК_1'!$F$103,0) -> 9195 | F82: 9195 | G82: 0 | H82: 1 | I82: 0 | J82: 0 | K82: НН | Q82: =J68*L68 -> 0
D83: ТП-25,МВ ЭК35/2 | E83: =ROUND('[1]Акт по договору НЭСК_1'!$F$104,0) -> 55287 | F83: 55287 | G83: 0 | H83: 1 | I83: 0 | J83: 0 | K83: НН | L83: 0
D84: 40785739
D85: НР Пр.8 эл.щитовая
D86: 41976749 | E86: =ROUND('[1]Акт по договору НЭСК_1'!$F$97,0) -> 1797 | F86: 1797 | G86: =E86-F86 -> 0 | H86: 60 | I86: =G86*H86 -> 0 | J86: =I86 -> 0 | K86: НН | L86: 0
D87: ТП27
D88: 39070464 | E88: =ROUND('[1]Акт по договору НЭСК_1'!$F$105,0) -> 28010 | F88: 28010 | G88: =E88-F88 -> 0 | H88: 1 | I88: =G88*H88 -> 0 | J88: =I88 -> 0 | K88: НН
D89: ТП27 | Q89: =J46*L46 -> 0
D90: 39070444 | E90: =ROUND('[1]Акт по договору НЭСК_1'!$F$106,0) -> 179076 | F90: 179076 | G90: =E90-F90 -> 0 | H90: 1 | I90: =G90*H90 -> 0 | J90: =I90 -> 0 | K90: НН | Q90: =J47*L47 -> 0
J91: =SUM(J63:J90) -> 0 | L91: 0.30689 | M91: =J91*K91 -> 0 | O91: =J91*L91 -> 0 | P91: =SUM(N91,O91) -> 0
A92: 16. | B92: Управление | C92: № 2817 | D92: Главный щит
B93: "Фитосан- | D93: 0818190164 | E93: =ROUND('[1]Акт по договору НЭСК_1'!$F$110,0) -> 10076 | F93: 10076 | G93: =E93-F93 -> 0 | H93: 10 | I93: =G93*H93 -> 0 | J93: =I93 -> 0 | K93: СН-2
B94: надзор" | J94: =J92+J93 -> 0 | L94: 0.30689 | M94: =J94*K94 -> 0 | O94: =J94*L94 -> 0 | P94: =SUM(N94,O94) -> 0
A95: 17. | B95: НФ ФГБУ | C95: № 5727 | D95: Щит №1 | G95: =E95-F95 -> 0 | I95: =G95*H95 -> 0 | J95: =I95 -> 0
B96: "ВНИИКР" | D96: 39070566 | E96: =ROUND('[1]Акт по договору НЭСК_1'!$F$113,0) -> 34583 | F96: 34583 | G96: =E96-F96 -> 0 | H96: 1 | I96: =G96*H96 -> 0 | J96: =I96 -> 0 | K96: СН-2
D97: Щит№2 | G97: =E97-F97 -> 0 | I97: =G97*H97 -> 0 | J97: =I97 -> 0
D98: 39070550 | E98: =ROUND('[1]Акт по договору НЭСК_1'!$F$114,0) -> 36841 | F98: 36841 | G98: =E98-F98 -> 0 | H98: 1 | I98: =G98*H98 -> 0 | J98: =I98 -> 0 | K98: СН-2
J99: =SUM(J95:J98) -> 0 | L99: 0.30689 | M99: =J99*K99 -> 0 | O99: =J99*L99 -> 0 | P99: =SUM(N99,O99) -> 0 | U99: 1.647
A100: 18. | B100: ООО | D100: РП-24 пр.25 | U100: 1.647
B101: "Бавария" | C101: №140466 | D101: 819190871 | E101: =ROUND('[1]Акт по договору №140005 ТНС'!$F$26,2) -> 92.19 | F101: 92.19 | G101: =E101-F101 -> 0 | H101: 1200 | I101: =G101*H101 -> 0 | J101: =I101 -> 0 | K101: СН-2 | U101: 0.4
D102: РП-24 пр.26 | I102: =G102*H102 -> 0 | J102: =I102 -> 0 | U102: 0.4
D103: 819191055 | E103: =ROUND('[1]Акт по договору №140005 ТНС'!$F$27,2) -> 47.29 | F103: 47.29 | G103: =E103-F103 -> 0 | H103: 3600 | I103: =G103*H103 -> 0 | J103: =I103 -> 0 | K103: СН-2 | U103: 2
J104: =J100+J102+J101+J103 -> 0 | L104: 0.30689 | M104: =J104*K104 -> 0 | O104: =J104*L104 -> 0 | P104: =SUM(N104,O104) -> 0 | U104: =SUM(U99:U103) -> 6.094
A105: 19. | B105: ООО "Новорос- | D105: ТП-20 Упр.
B106: сийский зерно- | D106: 0818190029 | E106: =ROUND('[1]Акт по договору НЭСК_1'!$F$117,0) -> 2004 | F106: 2004 | G106: =E106-F106 -> 0 | H106: 15 | I106: =G106*H106 -> 0 | J106: =I106 -> 0 | K106: НН
B107: вой терминал" | C107: № 2792 | D107: ТП-20 Упр.
D108: 0818190040 | E108: =ROUND('[1]Акт по договору НЭСК_1'!$F$118,0) -> 1931 | F108: 1931 | G108: =E108-F108 -> 0 | H108: 30 | I108: =G108*H108 -> 0 | J108: =I108 -> 0 | K108: НН
C109: Отдача | D109: ТП-16-ТП-33, РУ-6 кВ | G109: =E109-F109 -> 0 | I109: =G109*H109 -> 0 | J109: =I109 -> 0
D110: 0819190588 | E110: =ROUND('[1]Акт по договору НЭСК_1'!$F$119,2) -> 797.66 | F110: 797.66 | G110: =E110-F110 -> 0 | H110: 3600 | I110: =G110*H110 -> 0 | J110: =I110-#REF! ->  | K110: СН-2
D111: ТП-21,РУ-6 кВ
C112: Прием | D112: 0819190787 | F112: 9.54 | G112: =E112-F112 -> -9.54 | H112: 3600 | I112: =G112*H112 -> -34344 | J112: =I112 -> -34344 | K112: СН-2
D113: ТП-21,РУ-6 кВ
C114: Отдача | D114: 0819190787 | F114: =#REF! ->  | G114: =E114-F114 ->  | H114: 3600 | I114: =G114*H114 ->  | J114: =I114 ->  | K114: СН-2
D115: Дизельная станция
D116: 27381393 | F116: 2133 | G116: =E116-F116 -> -2133 | H116: 20 | I116: =G116*H116 -> -42660 | J116: =I116 -> -42660 | K116: СН-2
J117: =J116+J110+J108+J106 ->  | L117: 0.30689 | M117: =J117*K117 ->  | O117: =J117*L117 ->  | P117: =SUM(N117,O117) -> 
A118: 20. | B118: ООО | D118: ТП-19
B119: "Национальная | C119: № 6257 | D119: 0818190041 | E119: =ROUND('[1]Акт по договору НЭСК_1'!$F$125,0) -> 1442 | F119: 1442 | G119: =E119-F119 -> 0 | H119: 20 | I119: =G119*H119 -> 0 | J119: =I119 -> 0 | K119: СН-2
B120: логистическая | D120: 08181900111 | E120: =ROUND('[1]Акт по договору НЭСК_1'!$F$126,0) -> 4293 | F120: 4293 | G120: =E120-F120 -> 0 | H120: 20 | I120: =G120*H120 -> 0 | J120: =I120 -> 0 | K120: СН-2
B121: компания" | J121: =SUM(J118:J120) -> 0 | L121: 0.30689 | M121: =J121*K121 -> 0 | O121: =J121*L121 -> 0 | P121: =O121 -> 0
A122: 21. | B122: ООО | C122: №5494 | D122: Аренд.помещ. | G122: =E122-F122 -> 0 | I122: =G122*H122 -> 0 | J122: =I122 -> 0
B123: "РусАлТранс" | D123: 39170519 | F123: 6128 | G123: =E123-F123 -> -6128 | H123: 1 | I123: =G123*H123 -> -6128 | J123: =I123 -> -6128 | K123: НН
D124: ул. Портовая,38 | J124: =J122+J123 -> -6128 | L124: 0.30689 | M124: =J124*K124 -> 0 | O124: =J124*L124 -> -1880.62192 | P124: =SUM(N124,O124) -> -1880.62192
A125: 22. | B125: ИП | D125: Автомастерcкие
B126: Басюк Ю.В. | D126: 0819190850 | E126: =ROUND('[1]Акт по договору НЭСК_1'!$F$129,2) -> 30.93 | F126: 30.93 | G126: =E126-F126 -> 0 | H126: 1200 | I126: =G126*H126 -> 0 | J126: =I126 -> 0 | K126: СН-2
C127: №3705 | J127: =J125+J126 -> 0 | L127: 0.30689 | M127: =J127*K127 -> 0 | O127: =J127*L127 -> 0 | P127: =SUM(N127,O127) -> 0
A128: 23. | B128: ЧП "Рехвиа- | D128: Автомастерские | J128: =I128 -> 0
B129: швили" | D129: 0818190104 | E129: =ROUND('[1]Акт по договору НЭСК_1'!$F$132,0) -> 182 | F129: 182 | G129: =E129-F129 -> 0 | H129: 20 | I129: =G129*H129 -> 0 | J129: =I129 -> 0 | K129: СН-2
C130: №2814 | J130: =J128+J129 -> 0 | L130: 0.30689 | M130: =J130*K130 -> 0 | O130: =J130*L130 -> 0 | P130: =SUM(N130,O130) -> 0
A131: 24. | B131: АО "Националь- | P131: 0
B132: ная башенная | D132: 39070542 | E132: =ROUND('[1]Акт по договору НЭСК_1'!$F$225,0) -> 30036 | F132: 30036 | G132: =E132-F132 -> 0 | H132: 1 | I132: =G132*H132 -> 0 | J132: =I132 -> 0 | K132: НН | P132: 0
B133: компания" | C133: № 91512 | J133: =J131+J132 -> 0 | L133: 0.30689 | M133: =J133*K133 -> 0 | O133: =J133*L133 -> 0 | P133: =SUM(N133,O133) -> 0
A134: 25. | B134: ООО | D134: Мобильный | F134: 182.45 | G134: =E134-F134 -> -182.45 | H134: 1 | I134: =G134*H134 -> -182.45 | J134: =I134 -> -182.45 | K134: НН
B135: "Транспортные | C135: № 3712 | D135: домик
B136: технологии" | D136: по мощн. | I136: 0 | J136: =J134+J135 -> -182.45 | L136: 0.30689 | M136: =J136*K136 -> 0 | O136: =J136*L136 -> -55.9920805 | P136: =SUM(N136,O136) -> -55.9920805
A137: 26. | B137: ИП | D137: Склады
B138: Кайлончжу | D138: 0818190118 | E138: =ROUND('[1]Акт по договору НЭСК_1'!$F$135,0) -> 8599 | F138: 8599 | G138: =E138-F138 -> 0 | H138: 40 | I138: =G138*H138 -> 0 | J138: =I138 -> 0 | K138: сн-2
B139: Е.М. | D139: 0818190042 | E139: =ROUND('[1]Акт по договору НЭСК_1'!$F$136,0) -> 46 | F139: 46 | G139: =E139-F139 -> 0 | H139: 40 | I139: =G139*H139 -> 0 | J139: =I139 -> 0 | K139: СН-2
C140: № 3712 | J140: =J137+J139+J138 -> 0 | L140: 0.30689 | M140: =J140*K140 -> 0 | O140: =J140*L140 -> 0 | P140: =SUM(N140,O140) -> 0
A141: 27. | B141: ЗАО | C141: №дог.140883 | D141: цех
B142: "СММ" | C142: ТНС энерго | D142: 39070569 | E142: =ROUND('[1]Акт по договору №140005 ТНС'!$F$30,0) -> 22655 | F142: 22655 | G142: =E142-F142 -> 0 | H142: 1 | I142: =G142*H142 -> 0 | J142: =I142 -> 0 | K142: НН
C143: Кубань
D144: 0000670518 | F144: 371 | G144: =E144-F144 -> -371 | H144: 12 | I144: =G144*H144 -> -4452 | J144: =I144 -> -4452 | K144: НН
D146: 57034400 | F146: 30980 | G146: =E146-F146 -> -30980 | H146: 1 | I146: =G146*H146 -> -30980 | J146: =I146 -> -30980 | K146: НН
J147: =J146+J144+J142 -> -35432 | L147: 0.30689 | M147: =J147*K147 -> 0 | O147: =J147*L147 -> -10873.72648 | P147: =SUM(N147,O147) -> -10873.72648
A148: 28. | B148: ООО "МИС" | C148: №4341 | D148: Причал
D149: 0818190169 | E149: =ROUND('[1]Акт по договору НЭСК_1'!$F$186,0) -> 3517 | F149: 3517 | G149: =E149-F149 -> 0 | H149: 40 | I149: =G149*H149 -> 0 | J149: =I149 -> 0 | K149: СН-2
J150: =J148+J149 -> 0 | L150: 0.30689 | O150: =J150*L150 -> 0 | P150: =SUM(N150,O150) -> 0
A151: 29. | B151: И.П | D151: Кафе,ул Портовая,10
B152: Талярная З.З. | D152: 0818190022 | E152: =ROUND('[1]Акт по договору НЭСК_1'!$F$193,0) -> 863 | F152: 863 | G152: =E152-F152 -> 0 | H152: 60 | I152: =G152*H152 -> 0 | J152: =I152 -> 0 | K152: СН-2
D153: Буфет, ул Портовая,22
D154: 39070570 | E154: =ROUND('[1]Акт по договору НЭСК_1'!$F$194,0) -> 11008 | F154: 11008 | G154: =E154-F154 -> 0 | H154: 1 | I154: =G154*H154 -> 0 | J154: =I154 -> 0 | K154: НН
C155: № 3714 | J155: =SUM(J151:J154) -> 0 | L155: 0.30689 | M155: =J155*K155 -> 0 | O155: =J155*L155 -> 0 | P155: =SUM(N155,O155) -> 0
A156: 30. | B156: АЧБФФГУП | C156: №1418/0046 | D156: ЩУ-7 ТП -5 ЭК-4 | F156: 7 | G156: =E156-F156 -> -7 | H156: 1 | I156: =G156*H156 -> -7 | J156: =I156 -> -7 | K156: НН
B157: "РОСМОР- | D157: 40785734
B158: ПОРТ" | D158: камера ШТ-1
D159: 39170547 | E159: =ROUND('[1]Акт по договору НЭСК_1'!$F$142,0) -> 3162 | F159: 3162 | G159: =E159-F159 -> 0 | H159: 1 | I159: =G159*H159 -> 0 | J159: =I159 -> 0 | K159: НН
D160: камера ШТ-2
D161: 39170601 | E161: =ROUND('[1]Акт по договору НЭСК_1'!$F$147,0) -> 1227 | F161: 1227 | G161: =E161-F161 -> 0 | H161: 1 | I161: =G161*H161 -> 0 | J161: =I161 -> 0 | K161: НН
D162: камера ШТ-3
D163: 39170468 | E163: =ROUND('[1]Акт по договору НЭСК_1'!$F$146,0) -> 555 | F163: 555 | G163: =E163-F163 -> 0 | H163: 1 | I163: =G163*H163 -> 0 | J163: =I163 -> 0 | K163: НН
D164: камера ШТ-4
D165: 39170593 | E165: =ROUND('[1]Акт по договору НЭСК_1'!$F$145,0) -> 1267 | F165: 1267 | G165: =E165-F165 -> 0 | H165: 1 | I165: =G165*H165 -> 0 | J165: =I165 -> 0 | K165: НН
D166: ктп-1,ктп-2
D167: 39174138 | E167: =ROUND('[1]Акт по договору НЭСК_1'!$F$150,0) -> 1898 | F167: 1898 | G167: =E167-F167 -> 0 | H167: 1 | I167: =G167*H167 -> 0 | J167: =I167 -> 0 | K167: НН
D168: ктп-4,ктп-5
D169: 39170598 | E169: =ROUND('[1]Акт по договору НЭСК_1'!$F$149,0) -> 1879 | F169: 1879 | G169: =E169-F169 -> 0 | H169: 1 | I169: =G169*H169 -> 0 | J169: =I169 -> 0 | K169: НН
D170: ктп-6
D171: 39170552 | E171: =ROUND('[1]Акт по договору НЭСК_1'!$F$144,0) -> 1009 | F171: 1009 | G171: =E171-F171 -> 0 | H171: 1 | I171: =G171*H171 -> 0 | J171: =I171 -> 0 | K171: НН
D172: ктп-7
D173: 39170456 | E173: =ROUND('[1]Акт по договору НЭСК_1'!$F$143,0) -> 1033 | F173: 1033 | G173: =E173-F173 -> 0 | H173: 1 | I173: =G173*H173 -> 0 | J173: =I173 -> 0 | K173: НН
D174: ктп-8
D175: 39170471 | E175: =ROUND('[1]Акт по договору НЭСК_1'!$F$148,0) -> 988 | F175: 988 | G175: =E175-F175 -> 0 | H175: 1 | I175: =G175*H175 -> 0 | J175: =I175 -> 0 | K175: НН
D176: ктп-9
D177: 39170527 | E177: =ROUND('[1]Акт по договору НЭСК_1'!$F$140,0) -> 996 | F177: 996 | G177: =E177-F177 -> 0 | H177: 1 | I177: =G177*H177 -> 0 | J177: =I177 -> 0 | K177: НН
D178: ктп-10 | Q178: =J100*L100 -> 0
D179: 39170517 | E179: =ROUND('[1]Акт по договору НЭСК_1'!$F$141,0) -> 1005 | F179: 1005 | G179: =E179-F179 -> 0 | H179: 1 | I179: =G179*H179 -> 0 | J179: =I179 -> 0 | K179: НН
D180: Офис | G180: =E180-F180 -> 0 | I180: =G180*H180 -> 0 | J180: =I180 -> 0 | Q180: =J102*L102 -> 0
D181: Морской вокзал | I181: =G181*H181 -> 0
D182: 36056755 | E182: =ROUND('[1]Акт по договору НЭСК_1'!$F$139,0) -> 142165 | F182: 142165 | G182: =E182-F182 -> 0 | H182: 1 | I182: =G182*H182 -> 0 | J182: =I182 -> 0 | K182: нн
J183: =SUM(J156:J182) -> -7 | L183: 0.30689 | M183: =J183*K183 -> 0 | O183: =J183*L183 -> -2.14823 | P183: =N183+O183 -> -2.14823
A184: 32 | B184: ФГУ | C184: № 2880 | D184: Нефтерайон 1
B185: "АМП | D185: 39070457 | E185: =ROUND('[1]Акт по договору НЭСК_1'!$F$153,0) -> 11065 | F185: 11065 | G185: =E185-F185 -> 0 | H185: 1 | I185: =G185*H185 -> 0 | J185: =I185 -> 0 | K185: НН
B186: Черного | D186: ШУ-9 | E186: =ROUND('[1]Акт по договору НЭСК_1'!$F$154,0) -> 1784 | F186: 1784 | G186: =E186-F186 -> 0 | H186: 1 | I186: =G186*H186 -> 0 | J186: =I186 -> 0 | K186: НН
B187: моря" | D187: 40785794
D188: ШУ-10
D189: 41939474 | E189: =ROUND('[1]Акт по договору НЭСК_1'!$F$155,0) -> 197 | F189: 197 | G189: =E189-F189 -> 0 | H189: 30 | I189: =G189*H189 -> 0 | J189: =I189 -> 0 | K189: НН
D190: ШУ-11 | Q190: =J109*L109 -> 0
D191: 41939514 | E191: =ROUND('[1]Акт по договору НЭСК_1'!$F$156,0) -> 15 | F191: 4221 | G191: =E191-F191 -> -4206 | H191: 30 | I191: =G191*H191 -> -126180 | J191: =I191 -> -126180 | K191: НН
J192: =SUM(J184:J191) -> -126180 | L192: 0.30689 | M192: =J192*K192 -> 0 | O192: =J192*L192 -> -38723.3802 | P192: =O192 -> -38723.3802 | Q192: =J111*L111 -> 0
A193: 32. | B193: ФГБУ "ЦВММ" | C193: №227 | D193: Крейсер "Миха-
B194: Минобороны | D194: ил Кутузов" | M194: =J194*K194 -> 0
B195: России | D195: 0819191035 | E195: =ROUND('[1]Акт по договору НЭСК_1'!$F$159,0) -> 8439 | F195: 8439 | G195: =E195-F195 -> 0 | H195: 40 | I195: =G195*H195 -> 0 | J195: =I195-J285 -> 0
J196: =SUM(J193:J195) -> 0 | L196: 0.30689 | M196: =J196*K196 -> 0 | O196: =J196*L196 -> 0 | P196: =SUM(N196,O196) -> 0
A197: 33. | B197: ООО "ЭКСПО- | C197: № 2822 | D197: 39070585 | E197: =ROUND('[1]Акт по договору НЭСК_1'!$F$168,0) -> 107 | F197: 107 | G197: =E197-F197 -> 0 | H197: 1 | I197: =G197*H197 -> 0 | J197: =I197 -> 0 | K197: НН
B198: ЮГ" | G198: =E198-F198 -> 0 | H198: 1 | I198: =G198*H198 -> 0 | J198: =I198 -> 0 | K198: НН
D199: Магазины | J199: =SUM(J197:J198) -> 0 | L199: 0.30689 | M199: =J199*K199 -> 0 | O199: =J199*L199 -> 0 | P199: =SUM(N199,O199) -> 0
A200: 34. | B200: ФГУП "УВО | C200: № 1200 | D200: здание лит. "А"
B201: минтранса | D201: 39070545 | E201: =ROUND('[1]Акт по договору НЭСК_1'!$F$178,0) -> 26678 | F201: 26678 | G201: =E201-F201 -> 0 | H201: 1 | I201: =G201*H201 -> 0 | J201: =I201 -> 0 | K201: НН
... 168 more rows
